bitfinex/quotes_SOLUSD_20220130
["timestamp","ask_amount","ask_price","bid_price","bid_amount"]
[1643585316963,0.25,93.859,93.802,34.49258042]
[1643585317163,0.25,93.863,93.812,6.0]
[1643585317564,6.0,93.86,93.802,34.49258042]
[1643585317764,0.25,93.859,93.802,34.49258042]
[1643585317965,0.25,93.859,93.802,34.24258042]
[1643585318364,6.25,93.859,93.802,34.24258042]
[1643585318967,0.25,93.859,93.802,34.24258042]
[1643585319165,0.25,93.859,93.803,0.25]
[1643585319368,6.0,93.862,93.803,0.25]
[1643585319369,0.25,93.861,93.803,0.25]
[1643585320167,6.25,93.861,93.803,0.25]
[1643585320368,0.25,93.86,93.803,0.25]
[1643585320669,0.25,93.86,93.802,34.24258042]
[1643585321066,6.0,93.855,93.802,34.24258042]
[1643585321269,0.25,93.854,93.802,34.24258042]
[1643585322469,0.25,93.856,93.802,34.24258042]
[1643585322670,6.25,93.856,93.802,34.24258042]
[1643585322870,2.96500654,93.855,93.802,34.24258042]
[1643585323072,3.16500654,93.855,93.76,23.7576]
[1643585323270,3.21500654,93.854,93.77,6.0]
[1643585323470,2.96500654,93.853,93.77,6.0]
[1643585323672,2.96500654,93.853,93.771,0.25]
[1643585323870,0.25,93.852,93.771,6.25]
[1643585324074,0.25,93.852,93.772,37.65282683]
[1643585324270,6.0,93.843,93.773,0.25]
[1643585324771,0.25,93.842,93.773,0.25]
[1643585325671,0.25,93.842,93.782,6.0]
[1643585325871,0.25,93.852,93.783,0.25]
[1643585326072,2.96498344,93.851,93.783,0.25]
[1643585326271,0.25,93.85,93.783,0.25]
[1643585326671,2.96498344,93.849,93.782,6.0]
[1643585326872,0.25,93.848,93.772,37.65282683]
[1643585327074,0.25,93.848,93.773,0.25]
[1643585327273,2.96498344,93.847,93.773,0.25]
[1643585327672,2.96498344,93.847,93.766,10.73]
[1643585327673,0.25,93.846,93.766,10.73]
[1643585327873,3.20669142,93.846,93.739,2.42555872]
[1643585328075,6.0,93.836,93.749,6.0]
[1643585328273,6.0,93.836,93.723,46.8578]
[1643585328274,2.9705236,93.834,93.732,6.0]
[1643585328474,6.0,93.829,93.74,6.0]
[1643585328674,0.35,93.835,93.732,41.99266078]
[1643585328675,20.85266831,93.823,93.732,41.99266078]
[1643585328873,6.0,93.82,93.732,41.99266078]
[1643585329073,0.35,93.822,93.733,0.25]
[1643585329272,0.35,93.822,93.732,41.99266078]
[1643585329677,2.96501735,93.821,93.732,41.99266078]
[1643585329876,0.25,93.82,93.732,41.99266078]
[1643585330075,0.25,93.82,93.742,6.0]
[1643585330575,0.25,93.82,93.745,6.0]
[1643585330776,0.35,93.822,93.746,0.25]
[1643585331380,0.35,93.822,93.743,6.0]
[1643585332583,0.35,93.822,93.744,0.25]
[1643585334084,6.0,93.813,93.743,6.0]
[1643585334283,0.25,93.812,93.743,6.0]
[1643585334585,6.0,93.811,93.732,41.99266078]
[1643585334886,0.25,93.81,93.732,41.99266078]
[1643585335103,0.25,93.81,93.733,0.25]
[1643585335530,0.25,93.81,93.733,12.65]
[1643585335706,6.0,93.811,93.742,6.0]
[1643585335906,6.0,93.818,93.743,6.25]
[1643585336104,0.25,93.81,93.753,6.0]
[1643585336305,6.0,93.835,93.754,0.25]
[1643585336306,0.25,93.834,93.754,0.25]
[1643585336505,0.25,93.834,93.754,10.58180138]
[1643585336705,0.35,93.834,93.754,13.0073601]
[1643585337109,0.35,93.834,93.755,107.7]
[1643585337307,0.35,93.834,93.756,0.25]
[1643585337806,6.0,93.825,93.756,0.25]
[1643585338006,6.0,93.825,93.755,107.7]
[1643585338206,0.25,93.824,93.76,15.999]
[1643585338608,0.25,93.824,93.761,107.7]
[1643585338806,0.1,93.834,93.761,107.7]
[1643585339107,2.96169447,93.847,93.761,107.7]
[1643585339307,2.9705236,93.851,93.762,0.25]
[1643585339507,6.0,93.841,93.762,0.25]
[1643585340109,6.0,93.84,93.762,0.25]
[1643585340307,6.25,93.84,93.762,0.25]
[1643585340509,6.0,93.838,93.762,0.25]
[1643585340708,6.0,93.838,93.755,46.4905]
[1643585340911,6.0,93.83,93.755,46.4905]
[1643585341110,6.0,93.827,93.755,46.4905]
[1643585341310,19.05535147,93.826,93.755,46.4905]
[1643585341512,6.0,93.816,93.755,46.4905]
[1643585341810,0.25,93.815,93.756,0.25]
[1643585343010,0.25,93.815,93.755,0.25]
[1643585343614,0.25,93.815,93.754,10.33180138]
[1643585343814,0.25,93.815,93.731,47.4677]
[1643585343815,2.95669142,93.814,93.731,47.4677]
[1643585344014,6.0,93.804,93.732,0.25]
[1643585344413,0.25,93.803,93.731,47.4677]
[1643585344615,6.25,93.803,93.731,47.4677]
[1643585344915,44.02687779,93.802,93.697,16.23011539]
[1643585345217,6.0,93.792,93.681,16.23011539]
[1643585345414,0.25,93.791,93.687,2.42555872]
[1643585345614,6.25,93.791,93.697,6.0]
[1643585345814,6.25,93.791,93.7,16.01]
[1643585346015,6.25,93.791,93.71,6.0]
[1643585346215,6.25,93.791,93.71,17.31]
[1643585346415,6.25,93.791,93.71,11.31]
[1643585347618,6.25,93.791,93.711,0.25]
[1643585348015,6.25,93.791,93.721,17.46467516]
[1643585348418,6.25,93.791,93.731,6.0]
[1643585348620,6.0,93.791,93.731,16.17]
[1643585348820,0.25,93.79,93.732,0.25]
[1643585349019,0.25,93.79,93.732,113.95]
[1643585349319,0.25,93.79,93.741,6.0]
[1643585349619,0.25,93.79,93.742,40.859787]
[1643585349819,0.25,93.809,93.742,41.109787]
[1643585350018,1.72987817,93.809,93.742,41.109787]
[1643585350221,1.47987817,93.809,93.742,41.109787]
[1643585350521,1.48040682,93.807,93.75,16.001]
[1643585350721,1.48040682,93.833,93.75,25.611]
[1643585350922,1.48040682,93.836,93.76,6.0]
[1643585351120,1.48040682,93.841,93.761,129.43479699]
[1643585351325,1.48040682,93.841,93.761,129.68479699]
[1643585351524,1.48040682,93.839,93.763,107.7]
[1643585351723,1.48040682,93.84,93.772,107.7]
[1643585352023,1.48040682,93.84,93.772,121.9]
[1643585352223,0.25,93.839,93.773,0.25]
[1643585352624,1.73040682,93.839,93.773,0.25]
[1643585352824,1.48040682,93.838,93.773,0.25]
[1643585353225,0.25,93.837,93.773,0.25]
[1643585353625,0.25,93.837,93.771,6.0]
[1643585353827,42.9818022,93.827,93.771,6.0]
[1643585354026,0.1,93.826,93.74,15.41]
[1643585354226,0.35,93.826,93.74,15.41]
[1643585355028,1.83040682,93.826,93.74,31.413]
[1643585355227,1.73040682,93.826,93.74,31.413]
[1643585355428,1.48040682,93.825,93.74,31.413]
[1643585355828,0.25,93.824,93.74,31.413]
[1643585356028,33.63369503,93.824,93.74,31.413]
[1643585356228,1.58040682,93.823,93.74,31.413]
[1643585356431,0.1,93.823,93.762,0.25]
[1643585356629,0.25,93.822,93.762,0.25]
[1643585356828,0.1,93.823,93.762,0.25]
[1643585357029,0.25,93.824,93.762,9.56]
[1643585357830,1.48040682,93.831,93.762,9.56]
[1643585358033,1.48040682,93.832,93.762,117.26]
[1643585358232,1.48040682,93.831,93.762,117.26]
[1643585358832,1.48040682,93.832,93.762,117.26]
[1643585359030,1.48040682,93.832,93.772,6.0]
[1643585359231,1.48040682,93.833,93.772,6.0]
[1643585359429,1.48040682,93.841,93.773,0.25]
[1643585359630,1.48040682,93.842,93.774,6.0]
[1643585359830,1.48040682,93.842,93.775,0.25]
[1643585360030,35.44065928,93.844,93.775,0.25]
[1643585360230,0.1,93.843,93.775,0.25]
[1643585360835,1.48040682,93.84,93.775,0.25]
[1643585361031,1.48040682,93.84,93.774,0.25]
[1643585361636,0.25,93.839,93.774,0.25]
[1643585362334,0.25,93.842,93.774,0.25]
[1643585362633,0.25,93.842,93.773,6.0]
[1643585362835,6.0,93.833,93.741,107.7]
[1643585363035,6.0,93.833,93.742,46.7603]
[1643585363236,0.25,93.832,93.742,46.7603]
[1643585363538,1.73040682,93.832,93.74,15.41]
[1643585363735,107.7,93.824,93.72,63.7033]
[1643585363937,1.48040682,93.809,93.73,6.0]
[1643585364143,0.1,93.823,93.69,15.41]
[1643585364144,107.7,93.798,93.69,63.7033]
[1643585364338,6.0,93.788,93.68,15.41]
[1643585364538,6.0,93.781,93.69,6.0]
[1643585364737,1.48040682,93.783,93.699,42.34576865]
[1643585364938,6.0,93.777,93.699,42.34576865]
[1643585365135,0.25,93.78,93.709,6.0]
[1643585365536,0.25,93.78,93.71,6.0]
[1643585366338,0.25,93.786,93.71,6.0]
[1643585366937,0.25,93.786,93.711,0.25]
[1643585368038,6.0,93.78,93.711,0.25]
[1643585368439,6.0,93.78,93.666,1.43992032]
[1643585368440,3.20669142,93.779,93.666,1.43992032]
[1643585368641,3.20669142,93.779,93.646,47.8662]
[1643585368642,1.48040682,93.759,93.646,47.8662]
[1643585368863,1.48040682,93.749,93.646,47.8662]
[1643585369039,6.0,93.74,93.646,47.8662]
[1643585369441,37.82562637,93.739,93.647,38.78187202]
[1643585370040,37.82562637,93.739,93.65,6.0]
[1643585370440,37.82562637,93.739,93.651,0.25]
[1643585371041,6.0,93.73,93.651,0.25]
[1643585371441,0.25,93.729,93.651,0.25]
[1643585372640,0.25,93.738,93.651,0.25]
[1643585372840,0.25,93.738,93.651,13.54]
[1643585373042,0.25,93.738,93.66,6.0]
[1643585373441,47.6787,93.748,93.661,0.25]
[1643585373642,1.48040682,93.784,93.661,2.67555872]
[1643585373844,0.25,93.783,93.67,15.41]
[1643585374042,0.25,93.783,93.67,46.115]
[1643585374242,0.25,93.783,93.671,2.67555872]
[1643585374442,0.25,93.783,93.671,14.48827069]
[1643585374742,0.25,93.783,93.68,6.0]
[1643585374942,0.25,93.783,93.68,21.41]
[1643585375141,6.0,93.79,93.681,2.67555872]
[1643585375342,0.25,93.789,93.681,2.67555872]
[1643585375543,0.25,93.789,93.691,33.61267401]
[1643585375741,40.93795457,93.794,93.691,33.61267401]
[1643585375941,40.93795457,93.794,93.7,6.0]
[1643585376370,40.93795457,93.794,93.701,0.25]
[1643585377243,2.95669142,93.793,93.7,6.0]
[1643585377447,107.7,93.789,93.7,6.0]
[1643585377655,6.0,93.79,93.7,6.0]
[1643585377656,20.66746144,93.778,93.7,6.0]
[1643585377845,107.95,93.777,93.7,6.0]
[1643585378043,6.0,93.77,93.7,6.0]
[1643585378444,0.25,93.769,93.7,6.0]
[1643585380647,0.25,93.776,93.701,0.25]
[1643585380848,0.25,93.777,93.701,11.1]
[1643585381051,0.25,93.777,93.71,6.0]
[1643585381247,20.66746144,93.778,93.711,16.98190998]
[1643585381647,6.0,93.77,93.711,16.98190998]
[1643585381849,107.7,93.769,93.711,16.98190998]
[1643585382048,6.0,93.77,93.711,16.98190998]
[1643585382249,107.7,93.777,93.711,16.98190998]
[1643585382649,0.25,93.776,93.711,16.98190998]
[1643585383749,0.25,93.777,93.711,16.98190998]
[1643585386259,0.25,93.777,93.712,0.25]
[1643585386461,0.25,93.777,93.72,6.0]
[1643585386860,6.0,93.77,93.67,32.2352]
[1643585387059,107.95,93.769,93.68,6.0]
[1643585387259,110.90669142,93.769,93.67,6.0]
[1643585387459,6.0,93.76,93.67,6.0]
[1643585387858,151.473963,93.759,93.671,36.71795896]
[1643585388058,6.0,93.75,93.68,6.0]
[1643585388259,0.25,93.749,93.68,6.0]
[1643585389561,6.0,93.75,93.68,6.0]
[1643585389761,0.25,93.749,93.68,6.0]
[1643585395388,1.48040682,93.754,93.68,6.0]
[1643585395389,0.25,93.753,93.681,0.25]
[1643585395588,0.25,93.753,93.681,14.32]
[1643585395794,1.48040682,93.768,93.682,2.42555872]
[1643585395991,1.48040682,93.785,93.69,21.41]
[1643585396189,1.48040682,93.801,93.691,107.7]
[1643585396491,1.48040682,93.794,93.711,36.71795896]
[1643585396691,1.48040682,93.797,93.711,47.91795896]
[1643585396889,1.48040682,93.797,93.72,6.0]
[1643585397090,1.48040682,93.795,93.72,6.0]
[1643585397491,1.48040682,93.795,93.721,0.25]
[1643585397691,1.48040682,93.796,93.721,0.25]
[1643585397891,1.48040682,93.796,93.721,13.45]
[1643585398093,1.48040682,93.793,93.73,6.0]
[1643585398291,6.0,93.79,93.731,13.87662503]
[1643585398692,0.25,93.789,93.731,13.87662503]
[1643585399195,0.25,93.789,93.732,0.25]
[1643585399393,1.48040682,93.806,93.74,6.0]
[1643585399594,1.48040682,93.816,93.74,19.91]
[1643585399795,1.48040682,93.809,93.74,13.91]
[1643585399995,6.0,93.8,93.74,13.91]
[1643585400199,107.7,93.799,93.74,13.91]
[1643585400398,1.48040682,93.794,93.69,15.41]
[1643585400698,1.48040682,93.779,93.67,1.69716278]
[1643585400896,0.25,93.778,93.67,1.69716278]
[1643585401097,6.0,93.77,93.67,15.41]
[1643585401299,23.99810118,93.769,93.694,40.586323]
[1643585401497,107.7,93.768,93.694,40.586323]
[1643585401897,0.25,93.767,93.694,40.586323]
[1643585403699,2.95669142,93.766,93.694,40.586323]
[1643585403899,6.0,93.76,93.694,40.586323]
[1643585404302,110.90669142,93.759,93.661,47.5116]
[1643585404501,6.0,93.75,93.67,6.0]
[1643585404703,107.7,93.749,93.67,6.0]
[1643585404903,0.25,93.749,93.67,6.0]
[1643585405303,36.04475184,93.749,93.671,45.94026991]
[1643585405504,6.0,93.74,93.671,45.94026991]
[1643585405904,107.95,93.739,93.671,45.94026991]
[1643585406807,0.25,93.739,93.672,0.25]
[1643585407004,1.48040682,93.758,93.68,6.0]
[1643585407405,0.25,93.757,93.681,0.25]
[1643585407604,0.25,93.757,93.681,2.67555872]
[1643585407804,0.25,93.757,93.682,2.42555872]
[1643585408005,0.25,93.757,93.69,6.0]
[1643585408205,39.04899982,93.78,93.691,4.65431408]
[1643585408404,1.48040682,93.783,93.691,17.6798728]
[1643585408605,1.48040682,93.798,93.7,6.0]
[1643585408805,1.48040682,93.806,93.701,0.25]
[1643585409004,1.48040682,93.809,93.711,107.7]
[1643585409205,0.1,93.827,93.711,120.72]
[1643585409206,1.48040682,93.813,93.711,120.72]
[1643585409407,43.34549577,93.808,93.72,6.0]
[1643585409605,0.1,93.807,93.721,107.7]
[1643585409807,0.35,93.807,93.721,0.25]
[1643585411514,0.35,93.807,93.721,107.95]
[1643585411916,0.35,93.807,93.73,6.0]
[1643585412113,0.25,93.807,93.73,30.744]
[1643585412315,0.25,93.816,93.731,107.95]
[1643585412516,0.25,93.816,93.74,6.0]
[1643585412715,0.25,93.816,93.741,107.7]
[1643585412914,34.6334815,93.826,93.741,115.43827004]
[1643585413114,0.1,93.825,93.75,6.0]
[1643585413315,0.1,93.825,93.751,0.25]
[1643585413516,0.25,93.826,93.751,0.25]
[1643585413714,0.25,93.827,93.751,0.25]
[1643585413914,0.25,93.831,93.751,0.25]
[1643585414114,1.48040682,93.829,93.751,0.25]
[1643585414314,46.21118129,93.828,93.751,0.25]
[1643585414517,46.21118129,93.828,93.75,6.0]
[1643585414518,6.0,93.82,93.75,6.0]
[1643585414717,1.48040682,93.816,93.69,23.5929]
[1643585414915,1.48040682,93.816,93.7,15.41]
[1643585415118,6.0,93.81,93.7,15.41]
[1643585415315,1.48040682,93.805,93.69,23.5929]
[1643585415517,6.0,93.8,93.69,23.5929]
[1643585415716,4.68709824,93.804,93.691,33.53352578]
[1643585416015,0.25,93.799,93.7,6.0]
[1643585416415,107.7,93.789,93.7,6.0]
[1643585416616,39.44401454,93.788,93.7,6.0]
[1643585416816,39.69401454,93.788,93.7,6.0]
[1643585417419,39.69401454,93.788,93.701,0.25]
[1643585418436,39.44401454,93.788,93.701,0.25]
[1643585419436,39.44401454,93.788,93.692,0.25]
[1643585419836,0.25,93.787,93.692,0.25]
[1643585420036,0.25,93.787,93.7,16.009]
[1643585420237,0.25,93.787,93.7,29.539]
[1643585420438,6.0,93.8,93.701,2.67575958]
[1643585420640,0.25,93.799,93.71,6.0]
[1643585420841,0.25,93.799,93.686,2.42575958]
[1643585421042,0.30915087,93.788,93.686,2.42575958]
[1643585421240,0.30915087,93.788,93.63,1.43992032]
[1643585421241,1.48040682,93.768,93.63,1.43992032]
[1643585421439,1.48040682,93.768,93.606,107.7]
[1643585421440,1.48040682,93.752,93.615,1.43992032]
[1643585421640,1.48040682,93.747,93.61,1.43992032]
[1643585421840,44.58222817,93.746,93.611,42.7005221]
[1643585422040,6.0,93.74,93.611,42.7005221]
[1643585422344,15.41,93.73,93.611,42.7005221]
[1643585422539,6.0,93.72,93.611,42.7005221]
[1643585422739,15.41,93.71,93.611,42.7005221]
[1643585422941,6.0,93.7,93.592,1.43992032]
[1643585423142,6.0,93.7,93.589,1.43992032]
[1643585423341,15.41,93.69,93.551,1.43992032]
[1643585423541,6.0,93.68,93.56,16.034]
[1643585423742,107.7,93.679,93.547,1.43992032]
[1643585423943,107.7,93.679,93.548,43.23198016]
[1643585423944,27.94793146,93.678,93.548,43.23198016]
[1643585424142,6.0,93.67,93.548,43.23198016]
[1643585424343,15.41,93.66,93.548,43.23198016]
[1643585424642,6.0,93.65,93.55,22.035]
[1643585424845,0.25,93.649,93.55,6.0]
[1643585425445,0.25,93.649,93.551,0.25]
[1643585426050,107.95,93.649,93.551,0.25]
[1643585426246,6.0,93.64,93.551,0.25]
[1643585426446,27.94793146,93.638,93.558,6.0]
[1643585426849,0.25,93.637,93.559,0.25]
[1643585428149,6.0,93.628,93.559,0.25]
[1643585428348,0.25,93.627,93.559,0.25]
[1643585428747,0.25,93.627,93.548,43.23198016]
[1643585429850,27.94793146,93.638,93.548,43.23198016]
[1643585429851,0.25,93.637,93.548,43.23198016]
[1643585430051,6.0,93.628,93.549,0.25]
[1643585430449,0.25,93.627,93.549,0.25]
[1643585430649,0.25,93.627,93.558,6.0]
[1643585430850,0.25,93.627,93.559,0.25]
[1643585432051,0.25,93.627,93.549,0.25]
[1643585432451,15.41,93.64,93.549,0.25]
[1643585432658,16.1893,93.7,93.549,0.25]
[1643585432659,24.3125,93.717,93.559,107.7]
[1643585432857,107.7,93.708,93.56,0.25]
[1643585433053,15.41,93.7,93.569,6.0]
[1643585433254,15.41,93.7,93.57,100.7343]
[1643585433455,46.51161124,93.699,93.571,7.36260383]
[1643585433854,23.3623,93.698,93.581,6.0]
[1643585434153,6.0,93.688,93.581,6.0]
[1643585434354,15.09380477,93.679,93.582,0.25]
[1643585434553,6.0,93.669,93.582,0.25]
[1643585434753,0.25,93.678,93.582,0.25]
[1643585434953,0.25,93.668,93.582,0.25]
[1643585435165,0.25,93.668,93.582,6.25]
[1643585435956,15.09380477,93.679,93.582,6.25]
[1643585435957,0.25,93.678,93.582,6.0]
[1643585436157,6.0,93.669,93.582,6.0]
[1643585436384,0.25,93.668,93.581,6.0]
[1643585436658,0.25,93.668,93.582,107.7]
[1643585436659,44.95541434,93.659,93.582,107.7]
[1643585436858,0.25,93.658,93.591,6.0]
[1643585437058,0.25,93.658,93.592,43.23198016]
[1643585437458,6.0,93.649,93.592,43.23198016]
[1643585437664,6.0,93.649,93.56,2.39972054]
[1643585437857,0.25,93.648,93.541,49.2094]
[1643585438059,30.4784,93.648,93.541,49.2094]
[1643585438458,6.0,93.64,93.541,49.2094]
[1643585438661,6.0,93.638,93.542,36.42186031]
[1643585438858,15.41,93.65,93.552,113.7]
[1643585439059,15.41,93.67,93.552,122.74]
[1643585439259,0.25,93.649,93.553,24.6643]
[1643585439459,0.25,93.649,93.554,107.7]
[1643585439666,0.25,93.649,93.564,6.0]
[1643585439859,0.25,93.649,93.565,122.12272368]
[1643585440059,6.25,93.649,93.575,6.0]
[1643585440265,6.25,93.649,93.576,0.25]
[1643585441464,6.0,93.649,93.576,0.25]
[1643585441661,2.9705236,93.76,93.576,0.25]
[1643585441662,15.41,93.7,93.585,6.0]
[1643585441861,17.64215298,93.73,93.586,0.25]
[1643585442063,15.41,93.74,93.6,15.41]
[1643585442262,1.48040682,93.764,93.601,0.25]
[1643585442461,2.95669142,93.765,93.601,0.25]
[1643585442462,44.82491171,93.741,93.61,6.0]
[1643585442664,49.5087,93.775,93.64,16.017]
[1643585442867,49.5087,93.775,93.641,0.25]
[1643585443064,49.5087,93.775,93.65,6.0]
[1643585443266,49.5087,93.775,93.651,107.95]
[1643585443464,49.5087,93.775,93.651,113.95]
[1643585443663,39.7753604,93.774,93.66,15.41]
[1643585443898,40.0253604,93.774,93.661,107.95]
[1643585444064,40.0253604,93.774,93.672,107.7]
[1643585444265,40.0253604,93.774,93.673,34.44843447]
[1643585444465,40.0253604,93.774,93.682,6.0]
[1643585444665,6.0,93.764,93.683,6.0]
[1643585444865,6.0,93.764,93.673,34.19843447]
[1643585444866,0.25,93.763,93.673,34.19843447]
[1643585445068,9.20669142,93.763,93.673,34.19843447]
[1643585445472,2.95669142,93.762,93.673,34.19843447]
[1643585445668,6.25,93.763,93.673,34.19843447]
[1643585445669,21.83005561,93.759,93.673,34.19843447]
[1643585445869,6.0,93.752,93.673,34.19843447]
[1643585446070,6.0,93.749,93.673,34.19843447]
[1643585446269,6.0,93.749,93.683,6.0]
[1643585446270,0.25,93.748,93.683,6.0]
[1643585446470,0.25,93.748,93.683,15.67]
[1643585446672,0.25,93.748,93.684,0.25]
[1643585446873,0.25,93.748,93.683,15.67]
[1643585447273,6.0,93.749,93.684,0.25]
[1643585447673,6.0,93.763,93.684,0.25]
[1643585448273,33.62195813,93.762,93.684,0.25]
[1643585448675,6.0,93.752,93.684,0.25]
[1643585449374,0.25,93.751,93.684,0.25]
[1643585449575,0.25,93.751,93.674,0.25]
[1643585450680,0.25,93.751,93.683,6.0]
[1643585450876,0.25,93.751,93.684,0.25]
[1643585451075,1.48040682,93.785,93.684,0.25]
[1643585451277,1.48040682,93.785,93.684,2.65813289]
[1643585451501,0.1,93.809,93.694,6.0]
[1643585451502,1.48040682,93.79,93.694,6.0]
[1643585451907,6.0,93.78,93.71,16.007]
[1643585452103,6.0,93.79,93.72,6.0]
[1643585452303,6.0,93.79,93.721,0.25]
[1643585452505,6.0,93.795,93.721,107.95]
[1643585452704,1.48040682,93.806,93.731,6.0]
[1643585452904,0.25,93.805,93.732,0.25]
[1643585453104,0.25,93.805,93.732,6.25]
[1643585453307,0.25,93.807,93.732,6.25]
[1643585453506,1.48040682,93.814,93.732,6.0]
[1643585453705,1.73040682,93.812,93.732,6.0]
[1643585453907,4.68709824,93.812,93.722,16.39614952]
[1643585454105,6.0,93.802,93.722,16.39614952]
[1643585454306,0.25,93.801,93.722,16.39614952]
[1643585454506,6.0,93.799,93.722,16.39614952]
[1643585454706,6.0,93.799,93.723,0.25]
[1643585454906,0.25,93.798,93.723,0.25]
[1643585455107,0.25,93.798,93.722,16.39614952]
[1643585455909,0.25,93.8,93.722,16.39614952]
[1643585457509,6.0,93.801,93.722,16.39614952]
[1643585457810,6.0,93.801,93.723,0.25]
[1643585458211,16.0,93.8,93.722,16.39614952]
[1643585458413,6.0,93.801,93.722,16.39614952]
[1643585458811,0.25,93.8,93.722,16.39614952]
[1643585459411,6.0,93.801,93.732,6.0]
[1643585459814,6.0,93.801,93.722,16.39614952]
[1643585460212,6.0,93.801,93.723,0.25]
[1643585460412,0.1,93.81,93.732,6.0]
[1643585460614,0.1,93.81,93.733,6.0]
[1643585460812,0.35,93.81,93.733,6.25]
[1643585461211,0.35,93.81,93.733,6.0]
[1643585462412,6.0,93.801,93.722,16.39614952]
[1643585462613,6.0,93.801,93.724,0.25]
[1643585462816,0.25,93.8,93.724,0.25]
[1643585463017,6.0,93.799,93.724,0.25]
[1643585463318,0.25,93.798,93.724,0.25]
[1643585463717,0.25,93.798,93.722,16.39614952]
[1643585463920,2.95669142,93.797,93.722,16.39614952]
[1643585464116,6.0,93.787,93.722,16.39614952]
[1643585464316,18.75217461,93.786,93.722,16.39614952]
[1643585464516,6.0,93.776,93.722,16.39614952]
[1643585464917,0.25,93.775,93.722,16.39614952]
[1643585465918,0.25,93.775,93.681,24.1264]
[1643585466122,0.25,93.775,93.696,6.0]
[1643585466319,0.25,93.775,93.691,6.0]
[1643585466521,6.0,93.771,93.687,0.25]
[1643585466720,107.7,93.77,93.687,0.25]
[1643585466920,43.1032414,93.769,93.687,0.25]
[1643585467321,0.25,93.768,93.672,0.25]
[1643585467520,0.25,93.768,93.672,6.25]
[1643585468520,6.0,93.759,93.672,6.25]
[1643585468922,0.25,93.758,93.672,6.25]
[1643585469522,0.25,93.758,93.673,6.0]
[1643585469724,0.25,93.758,93.683,10.49113126]
[1643585470149,0.25,93.758,93.684,0.25]
[1643585471648,1.48040682,93.761,93.684,107.95]
[1643585471949,0.25,93.76,93.684,0.25]
[1643585472848,1.48040682,93.755,93.684,0.25]
[1643585473050,18.50217461,93.754,93.684,0.25]
[1643585473349,20.23258143,93.754,93.683,10.49113126]
[1643585473551,6.0,93.744,93.683,10.49113126]
[1643585473950,0.25,93.743,93.683,10.49113126]
[1643585474351,0.25,93.743,93.684,0.25]
[1643585474951,0.25,93.753,93.683,10.49113126]
[1643585475151,0.25,93.753,93.684,0.25]
[1643585475551,1.48040682,93.752,93.684,0.25]
[1643585475952,0.25,93.753,93.685,2.40813289]
[1643585475953,0.25,93.751,93.685,2.40813289]
[1643585476153,0.25,93.751,93.695,6.0]